Cogmind - Beta 9.3 @@@ ROGUE MODE // 2019.12.27 @ 21:16:05 // Winter2019/RPGLIKE Player: Horse Result: Destroyed by S-10 Pest with Light Assault Rifle Performance ------------- Evolutions (0) 0 Regions Visited (1) 200 Robots Destroyed (17) 85 Value Destroyed (353) 353 Prototype IDs (0) 0 Alien Tech Used (0) 0 Bonus (0) 0 TOTAL SCORE: 638 Bonus ------- None Cogmind --------- Core Integrity 0/600 Matter 300/300 Energy 155/160 System Corruption 0% Temperature Cool (0) Movement Walking (120) Location -10/Materials Parts ------- > --- POWER (1) -------- Light Nuclear Core > --- PROPULSION (2) --- Aluminum Leg Aluminum Leg > --- UTILITY (1) ------ Medium Armor Plating > --- WEAPON (4) ------- Maul Maul Maul Maul > --- INVENTORY (0) ---- (None) Peak State ------------ > --- POWER ------------ Light Nuclear Core > --- PROPULSION ------- Aluminum Leg Aluminum Leg > --- UTILITY ---------- Medium Armor Plating > --- WEAPON ----------- Maul Maul Maul Maul > --- INVENTORY -------- (None) [Rating: 15] Favorites ----------- Power Ion Engine Engine Ion Engine Power Core Light Nuclear Core Propulsion Aluminum Leg Leg Aluminum Leg Utility Medium Armor Plating Protection Medium Armor Plating Weapon Maul Energy Gun Small Laser Impact Weapon Maul Build | -11 -10 ------- Run | Scr Mat Slots Evolved 4 | 3 1 Power . | . . Propulsion 1 | 1 . Utility . | . . Weapon 3 | 2 1 Parts Attached 12 | 6 6 Power 2 | 1 1 Engine 1 | 1 . Core 1 | . 1 Reactor . | . . Propulsion 2 | 2 . Treads . | . . Leg 2 | 2 . Wheel . | . . Hover . | . . Flight . | . . Utility 1 | . 1 Device . | . . Storage . | . . Processor . | . . Hackware . | . . Protection 1 | . 1 Artifact . | . . Weapon 7 | 3 4 Energy Gun 3 | 3 . Energy Cannon . | . . Ballistic Gun . | . . Ballistic Cannon . | . . Launcher . | . . Special Weapon . | . . Impact Weapon 4 | . 4 Slashing Weapon . | . . Piercing Weapon . | . . Special Melee Weapon . | . . Unidentified Prototypes . | . . Parts Lost . | . . Power . | . . Propulsion . | . . Utility . | . . Weapon . | . . Highest Loss Streak . | . . Average Slot Usage (%) 99 | . 99 Engine 10 | . 10 Core 1 | . 1 Leg 25 | . 25 Protection 11 | . 11 Impact Weapon 48 | . 48 Naked Turns . | . . Heaviest Build 24 | 9 24 Greatest Support 25 | 20 25 Greatest Overweight (x) 1 | . 1 Average Overweight (x) . | . . Largest Inventory Capacity . | . . Average Capacity . | . . Most Carried . | . . Average Carried . | . . Final Capacity . | . . Final Carried . | . . Class Distribution -------------------- 95% | Mutant 4% | Gunner Dominant Class ---------------- Mutant | -10/Materials Resources | -11 -10 ----------- Run | Scr Mat Matter Collected 320 | 260 60 Remotely . | . . Salvage Created 639 | . 639 Parts 20 | . 20 Haulers Intercepted . | . . Recyclers Shooed . | . . Parts Field Recycled . | . . Retrieved Matter . | . . Parts Self-Destructed . | . . Prevented . | . . Kills | -11 -10 ------- Run | Scr Mat Combat Hostiles Destroyed 10 | . 10 Melee 10 | . 10 Classes Destroyed 7 | . 7 Worker 2 | . 2 Builder 1 | . 1 Recycler 2 | . 2 Mechanic 1 | . 1 Operator 1 | . 1 Swarmer 2 | . 2 Grunt 8 | . 8 Best Kill Streak 3 | . 3 Combat Bots Only 2 | . 2 Max Kills in Single Turn 1 | . 1 Gunslinging . | . . Exploded . | . . Melee 1 | . 1 Uniques/NPCs Destroyed . | . . Combat | -11 -10 -------- Run | Scr Mat Damage Taken 936 | . 936 Core 745 | . 745 Absorbed by Shields . | . . Redirected to Core 601 | . 601 Core Remaining (%) 100 | 100 . Volleys Fired . | . . Largest . | . . Hottest . | . . Shots Fired . | . . Gun . | . . Cannon . | . . Launcher . | . . Special . | . . Kinetic . | . . Thermal . | . . Explosive . | . . Electromagnetic . | . . Robot Hit Streak . | . . Robot Miss Streak . | . . Penetration Max . | . . Secondary Targets . | . . Shots Hit Robots 63 | . 63 Core Hits 15 | . 15 Critical Hits . | . . Critical Kills . | . . Critical Parts Destroyed . | . . Melee Attacks 99 | . 99 Impact 99 | . 99 Slashing . | . . Piercing . | . . Sneak Attacks 10 | . 10 Combat Hostiles . | . . Follow-up Attacks 25 | . 25 Damage Inflicted 2040 | . 2040 Guns . | . . Cannons . | . . Explosions . | . . Melee 2040 | . 2040 Ramming . | . . Kinetic . | . . Thermal . | . . Explosive . | . . Electromagnetic . | . . Impact 2040 | . 2040 Slashing . | . . Piercing . | . . Highest Corruption . | . . Average Corruption . | . . Corruption Purged . | . . Overload Shots . | . . Overflow Damage 309 | . 309 Projectiles . | . . Explosions . | . . Melee 309 | . 309 Knockbacks 6 | . 6 Impact 6 | . 6 Kinetic . | . . Secondary . | . . Self-Inflicted Damage . | . . Shots . | . . Rammed . | . . Targets Rammed . | . . Kicked . | . . Crushed . | . . Highest Temperature . | . . Average Temperature . | . . Received Heat Transfer 471 | . 471 Siege Activations . | . . Robots Corrupted . | . . Combat Hostiles . | . . Parts Fried 4 | . 4 Impact Corruptions 17 | . 17 Robots Melted . | . . Combat Hostiles . | . . Parts Melted . | . . Heat Transferred . | . . Parts Sabotaged . | . . Parts Stolen . | . . Parts Stripped . | . . Power Chain Reactions . | . . Missiles Intercepted . | . . Alert | -11 -10 ------- Run | Scr Mat Peak Influence 203 | . 203 Average Influence 29 | . 31 Maximum Alert Level 1 | . 1 Low Security (%) 98 | 100 98 Level 1 1 | . 1 Level 2 . | . . Level 3 . | . . Level 4 . | . . Level 5 . | . . High Security . | . . Max Security . | . . Squads Dispatched 5 | . 5 Investigation 1 | . 1 Extermination . | . . Reinforcement 4 | . 4 Assault . | . . Garrison . | . . Intercept . | . . Construction Impeded . | . . Haulers Reinforced . | . . Stealth | -11 -10 --------- Run | Scr Mat Distress Signals . | . . Communications Jammed . | . . Distress Signals . | . . Times Spotted 17 | . 17 Peak Tracking Total 3 | . 3 Tactical Retreats 1 | . 1 Traps | -11 -10 ------- Run | Scr Mat Traps Triggered . | . . Indirectly . | . . Trap Hack Attempts . | . . Triggered . | . . Disarmed . | . . Reprogrammed . | . . Reused . | . . Traps Extracted . | . . Installed . | . . Triggered . | . . Machines | -11 -10 ---------- Run | Scr Mat Machines Disabled . | . . Max in Single Turn . | . . Machines Sabotaged . | . . Garrisons Compromised . | . . Overloaded Fab Kills . | . . Fab Network Shutdowns . | . . Hacking | -11 -10 --------- Run | Scr Mat Machines Accessed 1 | . 1 Terminals 1 | . 1 Fabricators . | . . Repair Stations . | . . Recycling Units . | . . Scanalyzers . | . . Garrison Access . | . . Total Hacks 7 | . 7 Successful 3 | . 3 Failed 4 | . 4 Catastrophic . | . . Database Lockouts . | . . Manual 2 | . 2 Terminals 7 | . 7 Fabricators . | . . Repair Stations . | . . Recycling Units . | . . Scanalyzers . | . . Garrison Access . | . . Terminal Hacks 2 | . 2 Branch Access Points 1 | . 1 Terminal Index 1 | . 1 Fabricator Hacks . | . . Repair Station Hacks . | . . Recycling Unit Hacks . | . . Scanalyzer . | . . Garrison Access Hacks . | . . Unauthorized Hacks 2 | . 2 Terminals 1 | . 1 Assimilate 1 | . 1 Fabricators . | . . Repair Stations . | . . Recycling Units . | . . Scanalyzers . | . . Garrison Access . | . . Data Cores Recovered . | . . Used . | . . Hacking Detections 1 | . 1 Full Trace Events 1 | . 1 Feedback Events . | . . Feedback Blocked . | . . Robot Schematics Acquired . | . . Robots Built . | . . Matter . | . . Time . | . . Total Robot Build Rating . | . . Part Schematics Acquired . | . . Parts Built . | . . Matter . | . . Time . | . . Total Part Build Rating . | . . Parts Repaired . | . . Time . | . . Parts Recycled . | . . Recycled Matter . | . . Retrieved Matter . | . . Retrieved Components . | . . Parts Scanalyzed . | . . Part Schematics Acquired . | . . Parts Damaged . | . . Bothacking | -11 -10 ------------ Run | Scr Mat Used RIF Installer . | . . Robots Hacked . | . . Non-combat . | . . Combat . | . . Robot Hacks Applied . | . . Relay Couplers Released . | . . Robots Rewired . | . . Allies Hacked . | . . Hacks Repelled . | . . Allies | -11 -10 -------- Run | Scr Mat Total Allies . | . . Largest Group . | . . Highest-Rated Group . | . . Highest-Rated Ally . | . . Total Orders . | . . Ally Attacks . | . . Total Damage . | . . Kills . | . . Allies Corrupted . | . . Allies Melted . | . . Intel | -11 -10 ------- Run | Scr Mat Robot Analysis Total . | . . Derelict Logs Recovered . | . . Drone Launches . | . . Drone Recoveries . | . . Exploration | -11 -10 ------------- Run | Scr Mat Turns Passed 1028 | 48 980 Spaces Moved 317 | 38 279 Core 8 | 8 . Treads . | . . Legs 309 | 30 279 Wheels . | . . Hover . | . . Flight . | . . Fastest Speed 50 | 50 120 Average Speed 138 | 105 143 Slowest Speed 150 | 120 150 Overloaded Moves . | . . Propulsion Burnouts . | . . Robots Hopped . | . . Cave-ins Triggered . | . . Exploration Rate (%) 29 | 3 56 Regions Visited 1 Branch Regions . Pre-discovered Areas . | . . Known Exits Taken . | . . Unknown Exits Taken 1 | 1 . Scrap Searched . | . . Spaces Dug 7 | . 7 Terrain Destroyed 7 | . 7 Melee 7 | . 7 Projectile . | . . AOE . | . . Actions | -11 -10 --------- Run | Scr Mat Total 752 | 43 709 Wait 347 | . 347 Move 316 | 37 279 Hop . | . . Pick Up . | . . Fast Attach 12 | 6 6 Attach . | . . Detach . | . . Swap . | . . Drop 4 | . 4 Fire . | . . Melee 67 | . 67 Ram . | . . Kick . | . . Crush . | . . Escape Stasis . | . . Rewire . | . . Trap . | . . Miscellaneous 6 | . 6 Route ------- -11/Scrapyard -10/Materials (discovered 3 exits: [*Mat] / *Min x2) History --------- Turn | Location | Event 7 | -11/Scrapyard | Discovered new exit (range 16) 18 | -11/Scrapyard | Upgraded with Propulsion slot (x1) 18 | -11/Scrapyard | Upgraded with Weapon slot (x2) 49 | -11/Scrapyard | Entered Materials 55 | -10/Materials | Upgraded with Weapon slot (x1) 363 | -10/Materials | Build established: Mutant 474 | -10/Materials | Discovered new exit (range 15) 842 | -10/Materials | Discovered new exit (range 6) 867 | -10/Materials | Core integrity fell below 50% 931 | -10/Materials | Identified exit to Mines 949 | -10/Materials | Core integrity fell below 20% 1029 | -10/Materials | Destroyed by S-10 Pest with Light Assault Rifle Last Messages --------------- 00931_ O-16 Technician: "IFF HANDSHAKE FAILED. SECURING TERMINAL." 00935_ ALERT: Hostiles spotted, dispatching reinforcements to Terminal M006. 00944_ Maul follow-up attack on G-34 Mercenary. 00960_ G-34 Mercenary destroyed. 00963_ Maul follow-up attack on G-34 Mercenary. 00963_ G-34 Mercenary destroyed. 00967_ Acquired 10 matter. 00974_ Sneak attack on U-05 Engineer. 00974_ Destroyed Structural Scanner. 00974_ Destroyed Welding Torch. 00974_ Destroyed Lgt. Ion Engine. 00974_ U-05 Engineer system corrupted by crushing effect. 00974_ U-05 Engineer knocked back. 00975_ U-05 Engineer system terminally corrupted. 00975_ Wheel fried. 00975_ Terrain Scanner fried. 00989_ R-06 Scavenger collects Sml. Laser. 01006_ Maul follow-up attack on S-10 Pest. 01010_ S-10 Pest destroyed. 01026_ Protomatter-11 decays. Map ----- +----------------------------------------------------+ | ?????????????????????????????????????????????????? | | ?????????????????????????????????????????????????? | | ?????????????????????????????????????????????????? | | ????????????????????????????#######??????????????? | | ??????????????????????????# #????????????? | | ##????????????????????????# #????????????? | | "##???????????#########???# """ """ #????????????? | | |"##??????????""" """ #???# """ """ #????????????? | | ""#?######## """ """ ##### """ """ #????????????? | | #?# # """ """ # # #????????????? | | #?# !! # # < # = #????????????? | | #?# !! # # # !%% #??? #???????? | | #?# # + #####+##### #???????? | | #??# # # %[ #???>???? | | #???# # # * #### #???????? | | #######+############## " ""#???????????????? | | """ T"#???????????????? | | "" %""#???????????????? | | """ % #???? ##### ???? | | "" #??? ??? | | """ #?? ??? | | ^ """ #? ?????? | | ########## """ # #?????????? | | #????????######### " % #??????????? | | ##+#####??????????????# #??????????? | | # #??????????????# @ +?????????? | | # """ #??????????????#s##### ##?????????? | | + """ #??????????#####/##### #??????????? | | # """ #??????????# # ### ##??????????? | | # #??????????# # #??+#???????????? | | #] | #??????????# ! # +???????????????? | | +#####+##??????????# / #???????????????? | | = #??????????# ]| # #???????????????? | | =%""" =#??????????# || ### #???????????????? | | %%""" #??????????# | #?? #???????????????? | | """ #??????????# #?? #???????????????? | | #?####################?? #???????????????? | | ##+####+#?# ????????? #???????????????? | | ### || """?????????? #???????????????? | | # || """??????????##???????????????? | | * + """???????????????????????????? | | ^ ^ # #?????????????????????????? | | ^ #######+#####??????????????????????????? | | # """ ####???????????????????????????????????? | | # """ ???????????????????????????????????? | | # """ ???????????????????????????????????? | | # ??????????????????????????????????? | | # ######??????????????????????????????????? | | # #???????????????????????????????????????? | | # #### #???????????????????????????????????????? | +----------------------------------------------------+ Best States ------------- Heat Dissipation 25 Energy Generation 14 Energy Capacity 250 Matter Stores 300 Matter Capacity 300 Sight Range 16 Terrain Scan Density 10 Armor Coverage 225 Evasion (%) 40 Item Schematics ----------------- None Robot Schematics ------------------ None Fabricated ------------ Nothing Alien Tech Used ----------------- None Achievements -------------- None Challenges ------------ None RPGLIKE | -11 -10 --------- Run | Scr Mat Levels Raised . | . . XP Earned 4315 | 3000 1315 XP Spent 3000 | 1800 1200 Upgrades 5 | 3 2 Propulsion Slot 1 | 1 . Weapon Slot 3 | 2 1 Mass Support 1 | . 1 Protomatter Created 57 | . 57 Integrity Restored 138 | . 138 Core 138 | . 138 Protomatter Decayed 11 | . 11 Game ------ Seed DiametricPoweredMultirail Manual? 0 Play Time 00:10:15 Cumulative 841.2 hours Start 2019.12.27 @ 21:10:10 End 2019.12.27 @ 21:16:05 Sessions 1 Manual Loads 0 Difficulty Rogue Special Mode Winter2019/RPGLIKE Game No. 307 Rogue 307 Adventurer 0 Explorer 0 Win Type - Total 12 Types 11/0/1/0/0/0/0 Lore% 77 Gallery% 87 Achievement% 69 Wizard Run 0 Options --------- ASCII 0 Keyboard 1 Movement Numpad Keybinds 0 Fullscreen 2 Font 18/SmallcapsGlow Map View 112x50 Tactical HUD 1 Map Filters NONE Filters NONE Steam 1 RUN: 6013ab54-a02c-4bf7-90d3-66f25b626b4e